bitfinex-derivatives/quotes_SOLF0:USTF0_20260306
["timestamp","ask_amount","ask_price","bid_price","bid_amount"]
[1772801555076,7.1336322,86.48,86.401,8.5012595]
[1772801555767,7.1336322,86.48,86.381,8.57685256]
[1772801556271,20.814,86.473,86.381,8.57685256]
[1772801556865,10.409,86.456,86.399,8.5800006]
[1772801558474,10.41,86.449,86.399,8.5800006]
[1772801558969,20.81,86.493,86.4,7.1336322]
[1772801559171,10.407,86.473,86.413,8.58136503]
[1772801559372,490.3684327,86.497,86.413,8.58136503]
[1772801559965,490.3684327,86.497,86.38,27.9706322]
[1772801559966,490.3684327,86.497,86.43,8.58136503]
[1772801562576,10.407,86.475,86.43,8.58136503]
[1772801562778,490.3684327,86.497,86.43,8.58136503]
[1772801563776,20.809,86.496,86.415,8.58330688]
[1772801564484,490.3684327,86.497,86.418,8.58330688]
[1772801565572,490.3684327,86.497,86.421,8.57819293]
[1772801566673,490.3684327,86.497,86.426,8.57819293]
[1772801567877,8.82645082,86.496,86.401,8.60473924]
[1772801568279,10.407,86.469,86.403,8.60473924]
[1772801569578,8.82645082,86.489,86.403,8.60473924]
[1772801569773,8.82645082,86.488,86.403,8.60473924]
[1772801570075,8.82645082,86.487,86.403,8.60473924]
[1772801570275,8.82645082,86.486,86.403,8.60473924]
[1772801570573,8.82645082,86.485,86.403,8.60473924]
[1772801570778,10.409,86.456,86.403,8.60473924]
[1772801571678,10.41,86.449,86.403,8.60473924]
[1772801572580,10.41,86.449,86.41,11.50998458]
[1772801572984,10.409,86.457,86.411,8.70386357]
[1772801573577,10.409,86.457,86.42,2.85437268]
[1772801574176,10.55353942,86.488,86.44,2.85437268]
[1772801574383,8.89572308,86.487,86.45,2.85437268]
[1772801574582,8.89572308,86.486,86.45,2.85437268]
[1772801574772,8.89572308,86.485,86.45,2.85437268]
[1772801574974,8.89572308,86.484,86.45,2.85437268]
[1772801575178,8.89572308,86.483,86.45,2.85437268]
[1772801575480,490.3684327,86.497,86.45,2.85437268]
[1772801575679,8.90696675,86.496,86.45,2.85437268]
[1772801575882,10.405,86.491,86.45,2.85437268]
[1772801576179,8.90696675,86.49,86.441,8.70386357]
[1772801576382,8.90696675,86.489,86.441,8.70386357]
[1772801576583,8.90696675,86.488,86.441,8.70386357]
[1772801576780,19.31196675,86.487,86.441,8.70386357]
[1772801576984,8.90696675,86.486,86.441,8.70386357]
[1772801577185,8.90696675,86.485,86.441,8.70386357]
[1772801577483,8.90696675,86.484,86.441,8.70386357]
[1772801577682,8.90696675,86.483,86.441,8.70386357]
[1772801577890,8.90696675,86.482,86.441,8.70386357]
[1772801578083,490.3684327,86.497,86.441,8.70386357]
[1772801578283,8.91577874,86.496,86.441,8.70386357]
[1772801578485,8.91577874,86.495,86.441,8.70386357]
[1772801578683,8.91577874,86.494,86.441,8.70386357]
[1772801578880,10.406,86.484,86.441,8.70386357]
[1772801579185,8.91577874,86.483,86.441,8.70386357]
[1772801579484,19.32109144,86.482,86.441,8.70386357]
[1772801579683,10.406,86.482,86.441,8.70386357]
[1772801580983,2.85437268,86.47,86.427,8.70597564]
[1772801581183,2.85437268,86.46,86.409,8.70597564]
[1772801581482,490.3684327,86.497,86.36,327.56745015]
[1772801581483,2.85437268,86.44,86.393,8.70597564]
[1772801581682,8.90885702,86.439,86.393,8.70597564]
[1772801581980,8.90885702,86.438,86.4,2.85437268]
[1772801582186,8.90675835,86.452,86.401,8.70613536]
[1772801582378,2.85437268,86.45,86.401,8.70613536]
[1772801582577,8.90675835,86.449,86.401,8.70613536]
[1772801582785,2.85437268,86.45,86.401,8.70613536]
[1772801582980,8.90365221,86.449,86.401,8.70613536]
[1772801583185,2.85437268,86.45,86.401,8.70613536]
[1772801583386,8.90555651,86.449,86.401,8.70613536]
[1772801583586,2.85437268,86.45,86.401,8.70613536]
[1772801584492,10.41,86.451,86.401,8.70613536]
[1772801584885,10.41,86.449,86.401,8.70613536]
[1772801585681,10.409,86.456,86.401,8.70613536]
[1772801585886,8.89526984,86.455,86.401,8.70613536]
[1772801586089,8.89526984,86.454,86.401,8.70613536]
[1772801586390,10.41,86.45,86.401,8.70613536]
[1772801586581,7.13736731,86.48,86.401,8.70613536]
[1772801586582,10.55353942,86.474,86.401,8.70613536]
[1772801586784,10.409,86.457,86.406,8.68617665]
[1772801586981,8.89566303,86.456,86.406,8.68617665]
[1772801587179,8.89566303,86.455,86.406,8.68617665]
[1772801587388,8.89566303,86.454,86.406,8.68617665]
[1772801587594,10.55353942,86.474,86.406,8.68617665]
[1772801587788,8.89344407,86.473,86.406,8.68617665]
[1772801587986,8.89344407,86.472,86.406,8.68617665]
[1772801588289,8.89344407,86.471,86.406,8.68617665]
[1772801588478,10.55353942,86.465,86.388,8.68617665]
[1772801588679,10.55353942,86.457,86.388,8.68617665]
[1772801588881,19.44698349,86.456,86.388,8.68617665]
[1772801589094,8.89344407,86.455,86.361,8.67986728]
[1772801589387,7.13736731,86.44,86.361,8.67986728]
[1772801589586,10.55353942,86.436,86.361,8.67986728]
[1772801589781,8.89344407,86.435,86.361,8.67986728]
[1772801590088,8.89344407,86.434,86.361,8.67986728]
[1772801590390,8.89344407,86.433,86.361,8.67986728]
[1772801590590,8.89344407,86.432,86.361,8.67986728]
[1772801590788,10.414,86.411,86.361,8.67986728]
[1772801591687,10.415,86.402,86.361,8.67986728]
[1772801592783,10.414,86.41,86.361,8.67986728]
[1772801594392,10.414,86.41,86.33,7.13736731]
[1772801594393,8.86668636,86.419,86.339,8.68207758]
[1772801594591,8.86668636,86.418,86.339,8.68207758]
[1772801594791,8.86668636,86.417,86.339,8.68207758]
[1772801594992,8.86668636,86.416,86.339,8.68207758]
[1772801595196,8.86668636,86.419,86.339,8.68207758]
[1772801595389,7.13736731,86.42,86.339,8.68207758]
[1772801596087,10.414,86.413,86.35,8.68579368]
[1772801597896,7.13736731,86.44,86.354,8.69000209]
[1772801597897,10.415,86.406,86.354,8.69000209]
[1772801598100,8.8557165,86.433,86.354,8.69000209]
[1772801598396,20.82,86.451,86.33,7.13736731]
[1772801598397,7.13736731,86.42,86.331,8.69000209]
[1772801598591,7.13736731,86.42,86.334,8.69000209]
[1772801598896,8.8557165,86.438,86.334,8.69000209]
[1772801599096,8.8557165,86.437,86.334,8.69000209]
[1772801599390,8.8557165,86.439,86.334,8.69000209]
[1772801599599,8.8557165,86.438,86.334,8.69000209]
[1772801599790,10.414,86.411,86.353,8.71136481]
[1772801601798,8.82950615,86.439,86.353,8.71136481]
[1772801602097,7.13736731,86.44,86.353,8.71136481]
[1772801602298,10.417,86.392,86.353,8.71136481]
[1772801602498,7.13736731,86.42,86.353,8.71136481]
[1772801602499,7.14626945,86.43,86.353,8.71136481]
[1772801604598,10.417,86.392,86.353,8.71136481]
[1772801604796,2.85850562,86.39,86.339,8.70701829]
[1772801604997,2.85850562,86.38,86.339,8.70701829]
[1772801605202,2.85850562,86.39,86.339,8.70701829]
[1772801605404,8.83338075,86.418,86.339,8.70701829]
[1772801605706,2.85850562,86.39,86.341,8.70701829]
[1772801606501,2.85850562,86.38,86.341,8.70701829]
[1772801606900,2.85850562,86.37,86.321,8.69870792]
[1772801607098,2.85850562,86.36,86.321,8.69870792]
[1772801608003,2.85850562,86.35,86.301,8.69870792]
[1772801608206,2.85850562,86.36,86.301,8.69870792]
[1772801608405,10.421,86.357,86.301,8.69870792]
[1772801610410,7.15425889,86.41,86.311,8.69298286]
[1772801610608,18.72120761,86.41,86.311,8.69298286]
[1772801611006,7.15425889,86.39,86.315,8.69087672]
[1772801611211,8.80132242,86.409,86.315,8.69087672]
[1772801611510,18.72120761,86.41,86.315,8.69087672]
[1772801612105,10.418,86.385,86.315,8.69087672]
[1772801612507,18.72120761,86.41,86.315,8.69087672]
[1772801613505,18.72120761,86.41,86.328,8.69152605]
[1772801613713,11.56694872,86.41,86.331,8.69152605]
[1772801613912,7.15425889,86.43,86.331,8.69152605]
[1772801614606,10.415,86.41,86.352,8.69152605]
[1772801617312,8.81234434,86.429,86.352,8.69152605]
[1772801617513,7.15425889,86.41,86.311,8.69740895]
[1772801618815,10.418,86.381,86.313,8.69772898]
[1772801619209,8.81234434,86.409,86.313,8.69772898]
[1772801619413,7.15425889,86.41,86.313,8.69772898]
[1772801619912,7.15425889,86.41,86.315,8.69772898]
[1772801619913,10.419,86.374,86.315,8.69772898]
[1772801620113,8.81234434,86.409,86.315,8.69772898]
[1772801620310,7.15425889,86.41,86.315,8.69772898]
[1772801621314,10.419,86.369,86.315,8.69772898]
[1772801622212,10.419,86.376,86.315,8.69772898]
[1772801623913,10.419,86.376,86.317,8.6664244]
[1772801624913,10.419,86.376,86.322,8.67838482]
[1772801625113,8.85494302,86.407,86.322,8.67838482]
[1772801625307,8.85494302,86.406,86.322,8.67838482]
[1772801625512,8.85494302,86.412,86.322,8.67838482]
[1772801625712,10.42,86.369,86.322,8.67838482]
[1772801627411,10.42,86.36,86.322,8.67838482]
[1772801627908,8.85494302,86.394,86.322,8.67838482]
[1772801628110,8.85494302,86.407,86.322,8.67838482]
[1772801628413,8.85494302,86.406,86.324,8.67199343]
[1772801628617,2.85985374,86.38,86.331,8.67199343]
[1772801631817,10.419,86.372,86.331,8.67199343]
[1772801632111,10.419,86.372,86.252,28.61460935]
[1772801632112,2.85985374,86.36,86.317,8.6638082]
[1772801632809,19.40848244,86.387,86.301,8.66128578]
[1772801632810,2.85985374,86.35,86.301,8.66128578]
[1772801633419,10.422,86.346,86.301,8.66128578]
[1772801634114,10.423,86.34,86.301,8.66128578]
[1772801634314,2.85985374,86.35,86.301,8.66128578]
[1772801634818,10.424,86.334,86.301,8.66128578]
[1772801635819,20.837,86.379,86.239,20.87]
[1772801635820,10.425,86.325,86.287,8.66215848]
[1772801636614,10.426,86.318,86.287,8.66215848]
[1772801638319,10.425,86.326,86.291,8.64612397]
[1772801638915,10.423,86.336,86.291,8.64612397]
[1772801639111,10.423,86.336,86.3,2.85985374]
[1772801640422,10.422,86.344,86.301,8.65162909]
[1772801641015,10.422,86.344,86.31,2.85985374]
[1772801641214,10.422,86.344,86.31,11.46728103]
[1772801641722,10.421,86.359,86.32,11.46725197]
[1772801644221,10.42,86.366,86.32,11.46725197]
[1772801644729,8.8957335,86.373,86.34,2.85985374]
[1772801645029,450.58970676,86.374,86.321,8.60346114]
[1772801645224,2.85985374,86.37,86.321,8.60346114]
[1772801645427,2.85985374,86.37,86.31,2.85985374]
[1772801646326,2.85985374,86.36,86.31,2.85985374]
[1772801646525,2.85985374,86.36,86.307,8.60124509]
[1772801646923,10.421,86.353,86.31,2.85985374]
[1772801647323,10.421,86.353,86.307,8.60124509]
[1772801647528,10.421,86.353,86.31,2.85985374]
[1772801650031,8.91418519,86.373,86.311,8.63871804]
[1772801650234,8.91418519,86.373,86.25,162.309]
[1772801650235,450.58970676,86.374,86.335,8.63871804]
[1772801650526,2.85985374,86.37,86.32,8.63871804]
[1772801650825,8.9159534,86.369,86.31,2.85985374]
[1772801651031,8.9159534,86.368,86.31,2.85985374]
[1772801651232,8.9159534,86.367,86.31,11.49880363]
[1772801651426,10.42,86.367,86.311,8.63894989]
[1772801651732,10.42,86.367,86.321,8.63894989]
[1772801652127,450.58970676,86.374,86.321,8.63894989]
[1772801652827,2.85985374,86.36,86.301,8.63894989]
[1772801654729,10.421,86.358,86.301,8.63894989]
[1772801657332,10.55353942,86.387,86.244,28.61460935]
[1772801657333,2.85985374,86.4,86.346,8.59263395]
[1772801657634,2.85985374,86.4,86.244,173.92]
[1772801657635,2.85985374,86.37,86.32,2.85985374]
[1772801657938,8.92038747,86.369,86.321,8.59263395]
[1772801658131,8.9252058,86.368,86.321,8.59263395]
[1772801658334,21.08891872,86.41,86.321,8.59263395]
[1772801658335,8.9228475,86.379,86.321,8.59263395]
[1772801658534,8.9228475,86.378,86.321,8.59263395]
[1772801658734,2.85985374,86.38,86.321,8.59263395]
[1772801658930,8.92698152,86.379,86.321,8.59263395]
[1772801659127,8.92698152,86.378,86.321,8.59263395]
[1772801659328,8.92698152,86.377,86.33,2.85985374]
[1772801659532,10.417,86.388,86.341,8.61159849]
[1772801659737,8.93051642,86.387,86.341,8.61159849]
[1772801659938,8.93051642,86.386,86.341,8.61159849]
[1772801660140,10.417,86.388,86.341,8.61159849]
[1772801660440,8.9343271,86.387,86.33,2.85985374]
[1772801660640,2.85985374,86.37,86.325,8.61159849]
[1772801660879,8.93518005,86.369,86.325,8.61159849]
[1772801661039,2.85985374,86.37,86.325,8.61159849]
[1772801661040,8.93518005,86.368,86.325,8.61159849]
[1772801661236,8.93518005,86.368,86.31,2.85985374]
[1772801661237,10.42,86.362,86.31,2.85985374]
[1772801661839,2.85985374,86.36,86.309,8.62745408]
[1772801662544,10.42,86.362,86.309,8.62745408]
[1772801662733,10.72592329,86.384,86.273,20.862]
[1772801662938,8.93886932,86.383,86.331,8.61852794]
[1772801663138,8.93886932,86.382,86.331,8.61852794]
[1772801663338,8.93886932,86.381,86.331,8.61852794]
[1772801663535,2.85985374,86.39,86.331,8.61852794]
[1772801663731,10.418,86.383,86.331,8.61852794]
[1772801663931,8.9447196,86.382,86.331,8.61852794]
[1772801664248,8.9447196,86.381,86.331,8.61852794]
[1772801664439,10.417,86.389,86.331,8.61852794]
[1772801664738,8.94796348,86.388,86.331,8.61852794]
[1772801665042,25.67843443,86.413,86.331,8.61852794]
[1772801665043,10.418,86.378,86.331,8.61852794]
[1772801666944,2.85919697,86.38,86.331,8.61852794]
[1772801667442,8.95061728,86.379,86.331,8.61852794]
[1772801667645,8.95061728,86.378,86.331,8.61852794]
[1772801667845,8.95061728,86.377,86.331,8.61852794]
[1772801668039,2.85919697,86.38,86.331,8.61852794]
[1772801668242,8.94887782,86.379,86.331,8.61852794]
[1772801668443,8.94887782,86.378,86.331,8.61852794]
[1772801668746,10.419,86.374,86.331,8.61852794]
[1772801670446,8.94784754,86.373,86.331,8.61852794]
[1772801670646,8.94784754,86.373,86.317,10.426]
[1772801670647,2.85919697,86.37,86.319,8.61544865]
[1772801670846,2.85919697,86.36,86.319,8.61544865]
[1772801671250,10.421,86.36,86.319,8.61544865]
[1772801671952,10.422,86.352,86.319,8.61544865]
[1772801672449,2.85919697,86.38,86.321,8.60769116]
[1772801672652,8.96176824,86.379,86.321,8.60769116]
[1772801672855,8.96176824,86.378,86.321,8.60769116]
[1772801673154,8.96176824,86.377,86.33,2.85919697]
[1772801673356,10.419,86.372,86.331,8.60701808]
[1772801673556,2.85919697,86.39,86.331,8.60701808]
[1772801673754,8.97012834,86.389,86.331,8.60701808]
[1772801673957,8.97012834,86.388,86.331,8.60701808]
[1772801674157,8.97012834,86.387,86.331,8.60701808]
[1772801674351,8.97012834,86.386,86.331,8.60701808]
[1772801674556,8.97012834,86.385,86.331,8.60701808]
[1772801674757,10.418,86.379,86.331,8.60701808]
[1772801674957,8.97012834,86.378,86.331,8.60701808]
[1772801675152,8.97012834,86.377,86.331,8.60701808]
[1772801675360,8.97012834,86.376,86.331,8.60701808]
[1772801675553,8.97012834,86.375,86.331,8.60701808]
[1772801675860,2.85919697,86.38,86.331,8.60701808]
[1772801676061,8.98547912,86.379,86.331,8.60701808]
[1772801676253,8.98547912,86.378,86.331,8.60701808]
[1772801676450,8.98547912,86.378,86.313,10.426]
[1772801676451,2.85919697,86.37,86.31,11.46038885]
[1772801676760,8.98547912,86.369,86.311,8.60119188]
[1772801676961,10.421,86.357,86.311,8.60119188]
[1772801678662,10.42,86.366,86.313,8.58518013]
[1772801678861,8.92008671,86.365,86.313,8.58518013]
[1772801679061,8.92008671,86.364,86.313,8.58518013]
[1772801679260,8.92008671,86.363,86.313,8.58518013]
[1772801679564,10.42,86.362,86.315,8.57798025]
[1772801680563,8.92114565,86.387,86.324,8.57798025]
[1772801680856,34.89027914,86.403,86.324,8.57798025]
[1772801680857,8.92114565,86.386,86.324,8.57798025]
[1772801681161,8.92114565,86.385,86.324,8.57798025]
[1772801681362,8.92114565,86.384,86.324,8.57798025]
[1772801681565,8.92114565,86.383,86.324,8.57798025]
[1772801681770,10.72592329,86.391,86.324,8.57798025]
[1772801681771,8.92114565,86.382,86.324,8.57798025]
[1772801682059,8.92114565,86.381,86.324,8.57798025]
[1772801682266,8.92114565,86.38,86.324,8.57798025]
[1772801682466,8.92114565,86.379,86.324,8.57798025]
[1772801682658,8.92114565,86.378,86.324,8.57798025]
[1772801682859,10.419,86.37,86.324,8.57798025]
[1772801683271,8.93286236,86.369,86.324,8.57798025]
[1772801683470,10.419,86.37,86.324,8.57798025]
[1772801683764,10.42,86.368,86.324,8.57798025]
[1772801683963,8.93141536,86.367,86.324,8.57798025]
[1772801684164,8.93141536,86.366,86.324,8.57798025]
[1772801684367,10.421,86.353,86.324,8.57798025]
[1772801684570,7.15202812,86.35,86.285,8.55353561]
[1772801684766,19.6594977,86.349,86.285,8.55353561]
[1772801684970,7.15202812,86.35,86.285,8.55353561]
[1772801684971,8.93357441,86.348,86.285,8.55353561]
[1772801685169,10.423,86.336,86.285,8.55353561]
[1772801685467,8.93357441,86.335,86.285,8.55353561]
[1772801685666,8.93357441,86.334,86.285,8.55353561]
[1772801685971,8.93589951,86.333,86.285,8.55353561]
[1772801686273,7.15202812,86.35,86.285,8.55353561]
[1772801686474,8.93859778,86.349,86.285,8.55353561]
[1772801686672,8.93859778,86.348,86.285,8.55353561]
[1772801686874,10.424,86.33,86.285,8.55353561]
[1772801687074,7.15202812,86.35,86.285,8.55353561]
[1772801687273,8.93635918,86.349,86.285,8.55353561]
[1772801687471,8.93635918,86.348,86.285,8.55353561]
[1772801687679,8.93635918,86.347,86.285,8.55353561]
[1772801687875,10.72592329,86.373,86.285,8.55353561]
[1772801688176,8.93841009,86.372,86.285,8.55353561]
[1772801688374,8.93841009,86.371,86.285,8.55353561]
[1772801688575,8.93841009,86.37,86.285,8.55353561]
[1772801688776,8.93841009,86.369,86.285,8.55353561]
[1772801688970,8.93841009,86.368,86.291,8.4796803]
[1772801689168,7.15202812,86.37,86.291,8.4796803]
[1772801689169,10.72592329,86.364,86.291,8.4796803]
[1772801689369,8.93841009,86.363,86.291,8.4796803]
[1772801689573,8.93841009,86.362,86.291,8.4796803]
[1772801689765,10.72592329,86.364,86.291,8.4796803]
[1772801689766,8.93841009,86.361,86.291,8.4796803]
[1772801689966,8.93841009,86.36,86.291,8.4796803]
[1772801690175,8.93841009,86.359,86.291,8.4796803]
[1772801690375,8.93841009,86.358,86.291,8.4796803]
[1772801690570,8.93841009,86.357,86.291,8.4796803]
[1772801690873,10.423,86.342,86.291,8.4796803]
[1772801692176,10.422,86.349,86.291,8.4796803]
[1772801693071,10.72592329,86.378,86.307,8.47694179]
[1772801693376,8.93684767,86.377,86.307,8.47694179]
[1772801693577,8.93684767,86.376,86.307,8.47694179]
[1772801693777,21.08891872,86.415,86.325,8.47694179]
[1772801693778,10.419,86.375,86.325,8.47694179]
[1772801694170,14.05927914,86.411,86.325,8.47694179]
[1772801694171,10.72592329,86.4,86.325,8.47694179]
[1772801694378,10.72592329,86.398,86.325,8.47694179]
[1772801694578,8.93714383,86.397,86.325,8.47694179]
[1772801694774,8.93714383,86.396,86.325,8.47694179]
[1772801694975,8.93714383,86.395,86.325,8.47694179]
[1772801695173,8.93714383,86.394,86.325,8.47694179]
[1772801695478,8.937992,86.393,86.325,8.47694179]
[1772801695677,8.937992,86.392,86.325,8.47694179]
[1772801695878,10.418,86.382,86.327,8.47702016]
[1772801696078,8.93941565,86.381,86.327,8.47702016]
[1772801696278,10.418,86.382,86.327,8.47702016]
[1772801696479,8.94011399,86.381,86.327,8.47702016]
[1772801696674,10.418,86.382,86.327,8.47702016]
[1772801696876,8.94041531,86.381,86.327,8.47702016]
[1772801697177,10.418,86.382,86.327,8.47702016]
[1772801697379,8.9385498,86.381,86.327,8.47702016]
[1772801697678,10.418,86.382,86.327,8.47702016]
[1772801697874,8.93851656,86.381,86.327,8.47702016]
[1772801698071,10.418,86.382,86.327,8.47702016]
[1772801698276,8.93634089,86.381,86.327,8.47702016]
[1772801698575,10.418,86.382,86.327,8.47702016]
[1772801701781,8.94319257,86.381,86.327,8.47702016]
[1772801701983,8.94319257,86.38,86.327,8.47702016]
[1772801702186,8.94319257,86.379,86.327,8.47702016]
[1772801702382,8.94319257,86.378,86.327,8.47702016]
[1772801702581,8.94319257,86.377,86.327,8.47702016]
[1772801702777,10.421,86.354,86.313,8.47338726]
[1772801702985,8.94319257,86.375,86.313,8.47338726]
[1772801703187,8.94319257,86.374,86.313,8.47338726]
[1772801703491,10.7889703,86.396,86.313,8.47338726]
[1772801703688,8.94175504,86.395,86.313,8.47338726]
[1772801703882,10.417,86.391,86.334,8.47339228]
[1772801704082,10.7889703,86.41,86.334,8.47339228]
[1772801704280,8.94103361,86.409,86.334,8.47339228]
[1772801704486,8.94103361,86.408,86.334,8.47339228]
[1772801704687,8.94103361,86.407,86.334,8.47339228]
[1772801704986,8.94103361,86.406,86.334,8.47339228]
[1772801705184,8.94103361,86.405,86.334,8.47339228]
[1772801705484,8.94103361,86.404,86.334,8.47339228]
[1772801705685,8.94103361,86.403,86.334,8.47339228]
[1772801705885,10.417,86.388,86.334,8.47339228]
[1772801706476,10.417,86.388,86.341,8.46774285]
[1772801710890,10.416,86.395,86.341,8.46774285]
[1772801711990,10.417,86.392,86.341,8.46774285]
[1772801712191,8.9121181,86.391,86.341,8.46774285]
[1772801712387,17.93630012,86.41,86.341,8.46774285]
[1772801712690,8.91150024,86.409,86.341,8.46774285]
[1772801712888,8.91150024,86.408,86.341,8.46774285]
[1772801713090,8.91150024,86.407,86.341,8.46774285]
[1772801713292,8.91150024,86.406,86.341,8.46774285]
[1772801713489,8.91150024,86.405,86.341,8.46774285]
[1772801713686,8.91150024,86.404,86.341,8.46774285]
[1772801713890,8.91150024,86.403,86.341,8.46774285]
[1772801714088,10.416,86.4,86.343,8.46721452]
[1772801715599,10.415,86.407,86.348,8.51055408]
[1772801715897,456.83008307,86.412,86.348,8.51055408]
[1772801715898,8.91521302,86.406,86.348,8.51055408]
[1772801716093,8.91521302,86.405,86.348,8.51055408]
[1772801716396,456.83008307,86.412,86.348,8.51055408]
[1772801716596,10.417,86.393,86.348,8.51055408]
[1772801717205,2.38086446,86.432,86.35,7.14732982]
[1772801717399,2.38086446,86.432,86.351,3.68031035]
[1772801717796,10.413,86.422,86.362,3.68031035]
[1772801718299,12.79286446,86.431,86.364,10.42]
[1772801718499,12.79286446,86.431,86.365,3.68031035]
[1772801719801,2.38086446,86.431,86.368,3.68031035]
[1772801721801,10.415,86.407,86.368,3.68031035]
[1772801722005,2.73372802,86.413,86.368,3.68031035]
[1772801722708,2.73372802,86.427,86.368,3.68031035]
[1772801723206,10.413,86.42,86.368,3.68031035]
[1772801726105,2.69566096,86.417,86.354,3.68031035]
[1772801726806,10.417,86.389,86.327,3.68031035]
[1772801727006,2.69566096,86.395,86.327,3.68031035]
[1772801727607,10.419,86.375,86.327,3.68031035]
[1772801728911,10.42,86.368,86.327,3.68031035]
[1772801730409,10.419,86.376,86.327,3.68031035]
[1772801731501,10.419,86.376,86.329,3.68031035]
[1772801732313,10.419,86.376,86.331,3.97289341]
[1772801733610,10.418,86.383,86.331,3.97289341]
[1772801734008,2.59303698,86.394,86.331,3.97289341]
[1772801734210,8.86676424,86.417,86.376,3.97289341]
[1772801734414,2.59303698,86.435,86.376,3.97289341]
[1772801734613,2.59303698,86.433,86.376,3.97289341]
[1772801735114,2.41057239,86.431,86.376,3.97289341]
[1772801736015,489.7056785,86.436,86.386,3.97289341]
[1772801737912,489.7056785,86.436,86.388,10.417]
[1772801739127,489.7056785,86.436,86.386,3.97289341]
[1772801739316,2.2794993,86.465,86.4,7.14683628]
[1772801740112,2.2794993,86.465,86.425,10.413]
[1772801740313,2.2794993,86.465,86.4,7.14683628]
[1772801740817,2.2794993,86.465,86.416,10.414]
[1772801741119,2.2794993,86.465,86.4,7.14683628]
[1772801741317,10.409,86.457,86.4,7.14683628]
[1772801741512,2.2794993,86.465,86.4,7.14683628]
[1772801741819,2.2794993,86.465,86.41,10.414]
[1772801742413,8.82384292,86.489,86.4,7.14683628]
[1772801742617,29.48826138,86.497,86.388,21.50966338]
[1772801742914,29.48826138,86.497,86.42,7.14683628]
[1772801744417,7.14683628,86.53,86.42,7.14683628]
[1772801744418,29.53658322,86.495,86.43,10.412]
[1772801745015,29.53658322,86.495,86.442,10.411]
[1772801745620,29.49063489,86.516,86.42,7.14683628]
[1772801745822,29.49063489,86.516,86.391,339.59934067]
[1772801745823,29.49063489,86.516,86.44,7.14683628]
[1772801746021,29.49063489,86.516,86.46,7.14683628]
[1772801746618,29.49063489,86.516,86.454,10.409]
[1772801747524,29.49063489,86.516,86.463,10.408]
[1772801747724,29.49063489,86.516,86.46,7.14683628]
[1772801748326,29.49063489,86.516,86.44,7.14683628]
[1772801749025,29.55100451,86.514,86.453,10.409]
[1772801749426,29.55100451,86.514,86.42,7.14683628]
[1772801749826,29.55100451,86.514,86.44,7.14683628]
[1772801750124,10.402,86.511,86.451,10.409]
[1772801750321,10.402,86.511,86.44,7.14683628]
[1772801750322,29.54983973,86.511,86.44,7.14683628]
[1772801750626,29.54983973,86.511,86.47,10.407]
[1772801751022,29.550248,86.545,86.46,7.14683628]
[1772801751229,29.550248,86.543,86.479,10.406]
[1772801751435,29.550248,86.543,86.44,7.14683628]
[1772801751823,29.54911611,86.542,86.44,7.14683628]
[1772801752928,29.56117365,86.516,86.44,7.14683628]
[1772801754230,29.56117365,86.516,86.471,10.407]
[1772801754928,29.56117365,86.516,86.44,7.14683628]
[1772801754929,29.56117365,86.516,86.462,10.408]
[1772801755730,29.55385581,86.514,86.42,7.14683628]
[1772801756526,29.55281643,86.499,86.444,10.41]
[1772801756729,29.55281643,86.499,86.42,7.14683628]
[1772801757630,29.55281643,86.499,86.455,10.409]
[1772801758430,29.55281643,86.499,86.446,10.41]
[1772801758724,29.55281643,86.499,86.42,7.14683628]
[1772801759129,10.406,86.481,86.42,7.14683628]
[1772801759334,29.55036372,86.48,86.42,7.14683628]
[1772801759831,29.54937464,86.509,86.42,7.14683628]
[1772801760334,29.54937464,86.509,86.44,7.14683628]
[1772801760933,29.54937464,86.509,86.475,10.407]
[1772801763130,29.53021893,86.526,86.482,10.406]
[1772801764029,29.53021893,86.526,86.49,10.405]
[1772801764233,29.5292363,86.545,86.48,7.14683628]
[1772801764835,29.5292363,86.545,86.46,7.14683628]
[1772801765339,29.52869558,86.513,86.44,7.14683628]
[1772801766029,29.52869558,86.513,86.469,10.407]
[1772801766228,29.52869558,86.513,86.44,7.14683628]
[1772801766633,29.52869558,86.513,86.473,10.407]
[1772801766829,29.52869558,86.513,86.44,7.14683628]
[1772801768338,29.55595549,86.505,86.44,7.14683628]
[1772801769540,29.55595549,86.505,86.475,10.407]
[1772801770043,29.55615536,86.524,86.483,10.406]
[1772801770243,29.55615536,86.524,86.46,7.14683628]
[1772801770434,29.55615536,86.524,86.486,10.405]
[1772801770742,29.55615536,86.524,86.46,7.14683628]
[1772801771037,29.55615536,86.524,86.498,10.404]
[1772801772938,29.54736847,86.545,86.504,10.403]
[1772801774045,29.54736847,86.545,86.48,7.14683628]
[1772801775454,29.54736847,86.545,86.499,10.404]